Cogmind - Beta 16.1 --- EXPLORER MODE // 2026.05.03 @ 13:02:26 Player: Geo Result: Self-destructed Performance ------------- Evolutions (1) 500 Regions Visited (2) 400 Robots Destroyed (6) 30 Value Destroyed (29) 29 Prototype IDs (0) 0 Alien Tech Used (0) 0 Bonus (0) 0 TOTAL SCORE: 959 Bonus ------- None Cogmind --------- Core Integrity 366/400 Matter 265/300 Energy 430/430 System Corruption 0% Temperature Cool (0) Movement Walking (190) Ox1 Location -9/Materials Parts ------- > --- POWER (2) -------- Improved Ion Engine Reinforced Ion Engine > --- PROPULSION (3) --- Improved Aluminum Leg Improved Aluminum Leg > --- UTILITY (3) ------ Medium Storage Unit ECM Suite > --- WEAPON (2) ------- (None) > --- INVENTORY (10) --- Ion Engine Backup Power I Wheel Medium Matter Pod (100) Peak State ------------ > --- POWER ------------ Improved Ion Engine Reinforced Ion Engine > --- PROPULSION ------- Improved Aluminum Leg Improved Aluminum Leg > --- UTILITY ---------- Medium Storage Unit ECM Suite > --- WEAPON ----------- (None) > --- INVENTORY -------- Ion Engine Backup Power I Wheel Medium Matter Pod [Rating: 10] Favorites ----------- Power Ion Engine Engine Ion Engine Propulsion Wheel Treads Light Treads Leg Improved Aluminum Leg Wheel Wheel Utility ECM Suite Device ECM Suite Storage Medium Storage Unit Weapon Light Assault Rifle Ballistic Gun Light Assault Rifle Launcher Grenade Launcher Special Melee Weapon Datajack Build | -11 -10 -9 ------- Run | Yrd Mat Mat Slots Evolved 3 | . 1 2 Power 1 | . . 1 Propulsion 1 | . 1 . Utility 1 | . . 1 Weapon . | . . . Parts Attached 17 | 9 4 4 Power 3 | 1 . 2 Engine 3 | 1 . 2 Core . | . . . Reactor . | . . . Propulsion 7 | 4 1 2 Treads 2 | 2 . . Leg 2 | . . 2 Wheel 3 | 2 1 . Hover . | . . . Flight . | . . . Utility 3 | 2 1 . Device 1 | 1 . . Storage 2 | 1 1 . Processor . | . . . Hackware . | . . . Protection . | . . . Artifact . | . . . Weapon 4 | 2 2 . Energy Gun . | . . . Energy Cannon . | . . . Ballistic Gun 2 | 2 . . Ballistic Cannon . | . . . Launcher 1 | . 1 . Special Weapon . | . . . Impact Weapon . | . . . Slashing Weapon . | . . . Piercing Weapon . | . . . Special Melee Weapon 1 | . 1 . Unidentified Prototypes . | . . . Parts Lost 5 | . 1 4 Power . | . . . Propulsion 3 | . . 3 Utility . | . . . Weapon 2 | . 1 1 Highest Loss Streak 4 | . 1 4 To Critical Strikes . | . . . Average Backups 1 | . 2 2 Power . | . . . Propulsion . | . 1 1 Utility . | . 1 1 Weapon . | . . . Tool/Special . | . . . Unused Backups 3 | 1 . 2 Power . | . . . Propulsion 1 | . . 1 Utility 2 | 1 . 1 Weapon . | . . . Tool/Special . | . . . Average Slot Usage (%) 92 | . 100 65 Engine 12 | . 12 14 Leg 1 | . . 5 Wheel 33 | . 37 19 Device 11 | . 12 10 Storage 11 | . 12 10 Ballistic Gun 4 | . 5 . Launcher 7 | . 9 . Special Melee Weapon 8 | . 9 6 Peak Build Rating 10 | 7 8 10 Average Rating 7 | 6 7 7 On Entrance 4 | . 7 7 Avg Prop Armor Cover (%) . | . . . Naked Turns . | . . . Heaviest Build 29 | 19 21 29 Greatest Support 40 | 40 30 30 Greatest Overweight (x) 2 | 2 . 2 Average Overweight (x) . | . . . Largest Inventory Capacity 25 | 10 25 10 Average Capacity 9 | 9 10 10 Most Carried 6 | 3 4 6 Average Carried 1 | 1 2 2 Final Capacity 10 | 10 10 10 Final Carried 4 | 3 2 4 Class Distribution -------------------- 100% | Hacker-Mutant Dominant Class ---------------- Hacker-Mutant | -10/Materials Hacker-Mutant | -9/Materials Resources | -11 -10 -9 ----------- Run | Yrd Mat Mat Matter Collected 454 | 318 126 10 Remotely . | . . . Salvage Created 185 | 185 . . Parts 16 | 16 . . Haulers Intercepted . | . . . Recyclers Shooed . | . . . Parts Field Recycled . | . . . Retrieved Matter . | . . . Parts Self-Destructed . | . . . Prevented . | . . . Parts Restored . | . . . Kills | -11 -10 -9 ------- Run | Yrd Mat Mat Combat Hostiles Destroyed . | . . . Classes Destroyed 3 | 3 . . Worker 2 | 2 . . Tunneler 3 | 3 . . Recycler 1 | 1 . . Best Kill Streak 3 | 3 . . Combat Bots Only . | . . . Max Kills in Single Turn 1 | 1 . . Gunslinging . | . . . Exploded . | . . . Melee . | . . . Uniques/NPCs Destroyed . | . . . Combat | -11 -10 -9 -------- Run | Yrd Mat Mat Hostile Shots Fired 79 | . 41 38 Missed 35 | . 22 13 Hits 44 | . 19 25 Projectile 44 | . 19 25 Damage Taken 403 | . 174 229 Core 82 | . 48 34 Absorbed by Shields . | . . . Ignored by Resistances 255 | . 113 142 Core Remaining (%) 90 | 100 80 . Volleys Fired 15 | 15 . . Largest 2 | 2 . . Hottest 40 | 40 . . Shots Fired 30 | 30 . . Gun 30 | 30 . . Cannon . | . . . Launcher . | . . . Special . | . . . Kinetic 30 | 30 . . Thermal . | . . . Explosive . | . . . Electromagnetic . | . . . Robot Hit Streak 16 | 16 . . Robot Miss Streak 1 | 1 . . Penetration Max . | . . . Secondary Targets . | . . . Shots Hit Robots 34 | 24 10 . Core Hits 12 | 12 . . Critical Kills . | . . . Critical Parts Destroyed 1 | 1 . . Critical Strikes 1 | 1 . . Destroy 1 | 1 . . Melee Attacks 11 | . 11 . Impact . | . . . Slashing . | . . . Piercing . | . . . Sneak Attacks 7 | . 7 . Combat Hostiles . | . . . Follow-up Attacks . | . . . Damage Inflicted 195 | 195 . . Guns 195 | 195 . . Cannons . | . . . Explosions . | . . . Melee . | . . . Ramming . | . . . Kinetic 195 | 195 . . Thermal . | . . . Explosive . | . . . Electromagnetic . | . . . Impact . | . . . Slashing . | . . . Piercing . | . . . Highest Corruption 1 | . 1 . Average Corruption 1 | . 1 . Corruption Purged . | . . . Corruption Blocked . | . . . Overload Shots . | . . . Overflow Damage . | . . . Projectiles . | . . . Explosions . | . . . Melee . | . . . Knockbacks . | . . . Impact . | . . . Kinetic . | . . . Secondary . | . . . Self-Inflicted Damage . | . . . Shots . | . . . Rammed . | . . . Targets Rammed . | . . . Kicked . | . . . Crushed . | . . . Highest Temperature . | . . . Average Temperature . | . . . Received Heat Transfer 171 | . 72 99 Siege Activations . | . . . Martial Activations . | . . . Shielding Activations . | . . . Robots Disrupted . | . . . Combat Hostiles . | . . . Robots Corrupted . | . . . Combat Hostiles . | . . . Parts Fried . | . . . Impact Corruptions . | . . . Robots Melted . | . . . Combat Hostiles . | . . . Parts Melted . | . . . Heat Transferred . | . . . Parts Sabotaged . | . . . Parts Stolen . | . . . Parts Stripped . | . . . Power Chain Reactions . | . . . Alert | -11 -10 -9 ------- Run | Yrd Mat Mat Maximum Alert Level . | . . . Low Security (%) 100 | 100 100 100 Level 1 . | . . . Level 2 . | . . . Level 3 . | . . . Level 4 . | . . . Level 5 . | . . . High Security . | . . . Max Security . | . . . Peak Influence 15 | 10 8 15 Initial . | . . . Average . | 1 . 1 Influence Increases 61 | 30 16 15 Destroy 0b10 Robot/NC 30 | 30 . . Successful Hack 16 | . 16 . Partial Spotted 15 | . . 15 Influence Decreases 61 | 30 16 15 Time Decay 51 | 30 16 5 Lost Ally 10 | . . 10 Squads Dispatched . | . . . Investigation . | . . . Extermination . | . . . Reinforcement . | . . . Assault . | . . . Garrison . | . . . Intercept . | . . . Searches Triggered . | . . . Construction Impeded . | . . . Haulers Reinforced . | . . . Active Scanning Responses . | . . . Cargo Convoy Interrupts . | . . . Stealth | -11 -10 -9 --------- Run | Yrd Mat Mat Distress Signals 3 | . 2 1 Communications Jammed . | . . . Distress Signals . | . . . Times Spotted 13 | . 8 5 Peak Tracking Total 5 | . 3 5 Tactical Retreats 3 | . 3 . ECM-based Alert Blocks 6 | . 6 . Traps | -11 -10 -9 ------- Run | Yrd Mat Mat Traps Triggered 3 | . 3 . Indirectly . | . . . Trap Hack Attempts . | . . . Triggered . | . . . Disarmed . | . . . Reprogrammed . | . . . Reused . | . . . Traps Extracted . | . . . Installed . | . . . Triggered . | . . . Machines | -11 -10 -9 ---------- Run | Yrd Mat Mat Machines Disabled . | . . . Max in Single Turn . | . . . Machines Repaired . | . . . Machines Dismantled . | . . . Machines Sabotaged . | . . . Overloaded Fab Kills . | . . . Hacking | -11 -10 -9 --------- Run | Yrd Mat Mat Machines Accessed 8 | . 6 2 Terminals 7 | . 6 1 Fabricators . | . . . Repair Stations 1 | . . 1 Recycling Units . | . . . Scanalyzers . | . . . Garrison Access . | . . . Total Hacks 21 | . 17 4 Successful 16 | . 13 3 Failed 5 | . 4 1 Catastrophic . | . . . Database Lockouts . | . . . Manual 15 | . 12 3 Terminals 20 | . 17 3 Fabricators . | . . . Repair Stations 1 | . . 1 Recycling Units . | . . . Scanalyzers . | . . . Garrison Access . | . . . Terminal Hacks 5 | . 5 . Record 5 | . 5 . Fabricator Hacks . | . . . Repair Station Hacks 1 | . . 1 Refit 1 | . . 1 Recycling Unit Hacks . | . . . Scanalyzer . | . . . Garrison Access Hacks . | . . . Unauthorized Hacks 10 | . 8 2 Terminals 10 | . 8 2 Assimilate 3 | . 2 1 Botnet 7 | . 6 1 Fabricators . | . . . Repair Stations . | . . . Recycling Units . | . . . Scanalyzers . | . . . Garrison Access . | . . . Data Cores Recovered . | . . . Used . | . . . Hacking Detections 5 | . 4 1 Full Trace Events . | . . . Feedback Events . | . . . Feedback Blocked . | . . . Robot Schematics Acquired . | . . . Robots Built . | . . . Authchips . | . . . Time . | . . . Total Robot Build Rating . | . . . Part Schematics Acquired . | . . . Parts Built . | . . . Authchips . | . . . Time . | . . . Total Part Build Rating . | . . . Part Studies Acquired . | . . . Parts Repaired . | . . . Time . | . . . Parts Recycled . | . . . Recycled Matter . | . . . Retrieved Matter . | . . . Retrieved Components . | . . . Parts Scanalyzed . | . . . Part Schematics Acquired . | . . . Parts Damaged . | . . . Bothacking | -11 -10 -9 ------------ Run | Yrd Mat Mat Used RIF Installer . | . . . Robots Hacked 3 | . 3 . Non-combat 3 | . 3 . Combat . | . . . Robot Hacks Applied 4 | . 4 . parse_system 1 | . 1 . no_distress 3 | . 3 . Relay Couplers Released . | . . . Fabnet Peak Effective % . | . . . Robots Rewired . | . . . Allies Hacked . | . . . Hacks Repelled . | . . . Allies | -11 -10 -9 -------- Run | Yrd Mat Mat Total Allies 1 | . . 1 Largest Group 1 | . . 1 Highest-Rated Group 10 | . . 10 Highest-Rated Ally 10 | . . 10 Total Orders 1 | . . 1 ROAM 1 | . . 1 Ally Attacks . | . . . Total Damage . | . . . Kills . | . . . Allies Corrupted . | . . . Allies Melted . | . . . Intel | -11 -10 -9 ------- Run | Yrd Mat Mat Active Infowar (turns) 642 | 127 409 106 ECM 642 | 127 409 106 Robot Analysis Total . | . . . Derelict Logs Recovered . | . . . Drone Launches . | . . . Drone Recoveries . | . . . Exploration | -11 -10 -9 ------------- Run | Yrd Mat Mat Turns Passed 671 | 156 409 106 Spaces Moved 566 | 69 399 98 Core 10 | 10 . . Treads 45 | 45 . . Legs 14 | . . 14 Wheels 497 | 14 399 84 Hover . | . . . Flight . | . . . Fastest Speed 50 | 50 80 80 Average Speed 89 | 135 80 96 Slowest Speed 190 | 160 80 190 Overloaded Moves . | . . . Propulsion Burnouts . | . . . Robots Hopped . | . . . Potential Cave-ins . | . . . Cave-ins Triggered . | . . . Exploration Rate (%) 26 | 4 67 8 Regions Visited 2 Branch Regions . Pre-discovered Areas . | . . . Known Exits Taken 2 | 1 1 . Unknown Exits Taken . | . . . Scrap Searched . | . . . Spaces Dug . | . . . Terrain Destroyed . | . . . Melee . | . . . Projectile . | . . . AOE . | . . . Terrain Rammed . | . . . Walls Destroyed . | . . . Machines Disabled . | . . . Actions | -11 -10 -9 --------- Run | Yrd Mat Mat Total 698 | 108 483 107 Wait 63 | . 63 . Move 564 | 68 398 98 Hop . | . . . Pick Up 20 | 13 3 4 Fast Attach . | . . . Attach 12 | 7 3 2 Detach . | . . . Swap 7 | 2 2 3 Drop 6 | 3 3 . Fire 15 | 15 . . Melee 11 | . 11 . Ram . | . . . Kick . | . . . Crush . | . . . Escape Stasis . | . . . Rewire . | . . . Trap . | . . . Miscellaneous . | . . . Route ------- -11/Scrapyard -10/Materials (discovered 2 exits: *Mat x2) -9/Materials History --------- Turn | Location | Event 4 | -11/Scrapyard | Identified exit to Materials 4 | -11/Scrapyard | Discovered exit to Materials (range 16) 157 | -11/Scrapyard | Entered Materials 157 | -10/Materials | Evolved 1 slot: Propulsion x1 306 | -10/Materials | Build established: Hacker-Mutant 385 | -10/Materials | Identified exit to Materials 385 | -10/Materials | Discovered exit to Materials (range 13) 554 | -10/Materials | Discovered exit to Materials (range 16) 566 | -10/Materials | Entered another Materials area 566 | -9/Materials | Evolved 2 slots: Power x1, Utility x1 672 | -9/Materials | Self-destructed Last Messages --------------- >>Refit Scanning configuration... Attaching: Backup Power I x1 [Achievement: Fitting Room] 00627_ K-01 Serf collects debris. 00627_ K-01 Serf cleans the Terminal. 00631_ Acquired Imp. Ion Engine. 00634_ Acquired Rnf. Ion Engine. 00637_ Wheel destroyed. 00637_ Datajack destroyed. 00638_ K-01 Serf cleans the Repair Station. 00639_ Acquired Imp. Aluminum Leg. 00642_ K-01 Serf collects debris. 00642_ Acquired Imp. Aluminum Leg. 00643_ Wheel destroyed. 00645_ K-01 Serf collects debris. 00649_ K-01 Serf cleans the Repair Station. 00668_ W-16 Scout distress signal alerts nearby ally. Map ----- +----------------------------------------------------+ | ??????????????????????????# #??????????????????? | | ??????????????????????????# #??????????????????? | | ??????????????????????????# #??????????????????? | | ??????????????????????????# #??????????????????? | | ??????????????????????????# #??????????????????? | | ????????????????########### #??????????????????? | | ????????????????# """ # #??????????????????? | | ????????????????# """ # #??????????????????? | | ????????????????# """ # #??????????????????? | | ????????????????# # #??????????????????? | | ????????????????#!= # #??????????????????? | | ????????????????#![ + #??????????????????? | | ????????????????#!! # #??????????????????? | | ????????????????# # #??????????????????? | | ???????????################ ##?????????????????? | | ???????????# # ###+####??????????? | | ???????????# # #??????????? | | ???????????#""" % + T #??????????? | | ???????????#"R # #??????????? | | ???????????#""" # ########??????????? | | ???????????# ## ####???????????????? | | ???????????######### ###### !##??????????????? | | ???????????????????###????# !#??????????????? | | ?????????????############## !#??????????????? | | ?????????? !#??????????????? | | ?????????? @ !#??????????????? | | ?????????? w w u !##??????????????? | | ????????????###########+##########???????????????? | | ?????????????????????????????????????????????????? | | ?????????????????????????????????????????????????? | | ?????????????????????????????????????????????????? | | ?????????????????????????????????????????????????? | | ?????????????????????????????????????????????????? | | ?????????????????????????????????????????????????? | | ?????????????????????????????????????????????????? | | ?????????????????????????????????????????????????? | | ?????????????????????????????????????????????????? | | ?????????????????????????????????????????????????? | | ?????????????????????????????????????????????????? | | ?????????????????????????????????????????????????? | | ?????????????????????????????????????????????????? | | ?????????????????????????????????????????????????? | | ?????????????????????????????????????????????????? | | ?????????????????????????????????????????????????? | | ?????????????????????????????????????????????????? | | ?????????????????????????????????????????????????? | | ?????????????????????????????????????????????????? | | ?????????????????????????????????????????????????? | | ?????????????????????????????????????????????????? | | ?????????????????????????????????????????????????? | +----------------------------------------------------+ Best States ------------- Heat Dissipation 28 Energy Generation 19 Energy Capacity 430 Matter Stores 300 Matter Capacity 300 Sight Range 16 Terrain Scan Density 10 ECM Strength 1 Resistance: KI 35 Resistance: TH 35 Resistance: EX 35 Resistance: EM 35 Resistance: I 35 Resistance: S 35 Resistance: P 35 Evasion (%) 44 Recoil Reduction 2 Offensive Hacking 20 Item Schematics ----------------- None Robot Schematics ------------------ None Fabricated ------------ Nothing Repaired ---------- Nothing Studied --------- None Alien Tech Used ----------------- None Achievements -------------- Fitting Room Junior Dev Challenges ------------ None Game ------ Seed QuantumPointBox Manual? 0 Play Time 00:16:49 Cumulative 8.4 hours Start 2026.05.03 @ 12:44:15 End 2026.05.03 @ 13:02:26 Sessions 1 Manual Loads 0 Difficulty Explorer Special Mode None Game No. 12 Rogue 5 Adventurer 4 Explorer 3 Win Type - Total 0 Types 0/0/0/0/0/0/0/0/0/0 Lore% 6 Gallery% 17 Achievement% 14 Wizard Run 0 Options --------- Layout 2 ASCII 0 Keyboard 0 Movement Mouse Keybinds 0 Fullscreen 2 Font 24/Smallcaps Map View 50x44 Zoom Use 0% Tactical HUD 1 Map Filters NONE Filters NONE Steam 1 RUN: 24c7dec1-accb-46e9-b43f-0f2331d73edd